bitfinex/quotes_ETHUSD_20251218
["timestamp","ask_amount","ask_price","bid_price","bid_amount"]
[1766066616820,2.4488,2982.0,2980.8,0.579]
[1766066616962,0.579,2981.9,2980.8,8.0041]
[1766066617163,3.0278,2981.9,2980.9,0.80051]
[1766066617399,2.86565151,2981.9,2980.9,0.80051]
[1766066618171,2.4488,2981.4,2980.7,0.001]
[1766066618389,3.06972801,2981.3,2980.5,0.001]
[1766066618637,2.4488,2981.1,2980.5,0.001]
[1766066618800,7.8772,2981.2,2979.0,1.68384773]
[1766066618801,2.4488,2980.7,2979.0,9.10894773]
[1766066619005,0.579,2980.9,2979.9,7.4251]
[1766066619178,0.579,2980.9,2980.1,7.4251]
[1766066619877,2.4488,2980.8,2979.7,7.4251]
[1766066620092,2.448,2980.8,2979.7,7.4251]
[1766066620403,3.027,2980.8,2979.8,7.4251]
[1766066621202,2.448,2980.8,2979.8,7.4251]
[1766066621388,2.448,2980.8,2979.9,1.06243]
[1766066621704,0.579,2981.0,2980.0,7.4251]
[1766066621903,0.579,2981.0,2979.6,0.001]
[1766066622109,2.4488,2980.7,2979.6,0.001]
[1766066622420,2.4528,2980.4,2979.6,0.001]
[1766066622582,2.4528,2980.0,2978.8,7.2198]
[1766066622781,2.4528,2979.8,2978.7,0.579]
[1766066623512,2.4528,2979.8,2978.6,2.3822]
[1766066623715,2.4528,2979.6,2978.5,0.001]
[1766066623889,0.579,2979.6,2978.7,7.2198]
[1766066624084,11.26047861,2980.8,2978.7,4.89646923]
[1766066624085,2.4528,2980.7,2978.7,4.89646923]
[1766066624309,2.4528,2980.5,2979.0,7.2198]
[1766066624485,2.4528,2980.3,2979.0,7.2198]
[1766066624686,2.4528,2980.3,2979.2,9.602]
[1766066625011,2.4528,2980.1,2978.9,7.2198]
[1766066625211,0.579,2980.0,2978.9,7.2198]
[1766066625384,2.4528,2979.6,2978.5,0.001]
[1766066625708,0.579,2980.0,2979.1,2.3822]
[1766066625914,7.44125023,2981.5,2978.5,0.001]
[1766066626239,7.44125023,2980.3,2978.5,0.001]
[1766066626391,7.44125023,2979.8,2978.5,0.001]
[1766066626574,0.62095053,2979.7,2978.5,0.001]
[1766066626776,0.79056305,2979.8,2978.6,7.2198]
[1766066627026,7.9002,2979.7,2978.5,0.001]
[1766066627314,2.4528,2979.5,2978.5,0.001]
[1766066627514,0.579,2979.4,2978.5,0.001]
[1766066627688,3.07375475,2979.4,2978.5,0.001]
[1766066627898,2.4528,2979.8,2978.6,7.2198]
[1766066628109,2.4528,2979.8,2978.6,7.94188]
[1766066628413,0.579,2979.7,2978.6,10.32408]
[1766066628792,3.819782,2980.3,2978.6,10.32408]
[1766066628793,10.06272429,2981.3,2978.9,7.2198]
[1766066628994,2.4528,2980.0,2978.9,7.2198]
[1766066629192,2.4528,2980.0,2979.0,0.72198]
[1766066629430,0.579,2980.0,2979.1,7.2198]
[1766066629714,0.579,2980.2,2979.2,7.2198]
[1766066630017,2.4528,2980.1,2979.2,7.2198]
[1766066630932,0.579,2980.3,2979.4,7.2198]
[1766066631088,5.80772085,2980.7,2979.4,8.18]
[1766066631089,3.35492085,2980.7,2979.4,8.18]
[1766066631290,3.0318,2980.6,2979.4,8.18]
[1766066631503,2.4528,2980.5,2979.4,8.18]
[1766066631713,2.4528,2980.5,2979.5,1.05622]
[1766066631714,2.49473927,2980.5,2979.5,1.05622]
[1766066632008,0.579,2980.4,2979.0,0.72198]
[1766066632184,2.4528,2980.2,2979.0,7.2198]
[1766066632385,2.4528,2980.2,2978.8,0.579]
[1766066632386,7.3212,2980.7,2979.2,7.2198]
[1766066632586,2.4528,2980.8,2979.5,9.602]
[1766066632789,2.4528,2980.8,2979.7,7.2198]
[1766066633823,2.4528,2980.8,2979.8,7.2198]
[1766066634000,3.0318,2980.8,2979.8,7.2198]
[1766066634702,0.579,2980.8,2979.8,2.3822]
[1766066634915,0.579,2980.8,2979.9,7.45802]
[1766066635115,0.579,2980.8,2980.1,7.2198]
[1766066635297,0.405504,2982.0,2979.9,0.23822]
[1766066635298,2.4528,2982.0,2980.6,7.2198]
[1766066635597,2.4528,2981.6,2980.3,7.7988]
[1766066635932,2.4528,2981.6,2980.5,7.2198]
[1766066636091,2.4528,2981.6,2980.6,7.2198]
[1766066636510,0.579,2981.9,2980.8,7.2198]
[1766066636709,2.4528,2981.7,2980.8,0.579]
[1766066637022,11.93428436,2982.2,2980.8,0.579]
[1766066637023,0.579,2982.0,2980.9,7.2198]
[1766066637235,0.579,2982.0,2981.0,1.0181]
[1766066637455,2.4528,2982.1,2981.0,1.0181]
[1766066637722,0.579,2982.4,2981.0,1.0181]
[1766066637906,2.4528,2982.3,2981.3,2.3822]
[1766066638220,3.0318,2982.7,2981.4,7.7988]
[1766066638700,6.38447534,2982.7,2981.5,7.2198]
[1766066638900,0.002,2982.1,2981.5,7.2198]
[1766066639296,0.002,2982.1,2980.7,2.3822]
[1766066639297,2.4548,2982.1,2980.7,2.3822]
[1766066639515,2.4548,2982.1,2980.8,8.37252136]
[1766066639885,2.4548,2982.1,2981.0,7.2198]
[1766066640085,0.002,2982.1,2981.0,9.602]
[1766066640316,0.002,2982.1,2981.2,7.2198]
[1766066640516,0.002,2982.1,2981.5,7.8212]
[1766066640732,0.002,2982.1,2981.6,1.02767]
[1766066641028,2.4159,2982.0,2980.8,8.39492136]
[1766066641226,2.4159,2981.8,2980.8,0.57372136]
[1766066641531,0.002,2982.1,2980.8,0.57372136]
[1766066641532,7.3358,2982.1,2980.9,8.4002]
[1766066641737,7.3358,2982.1,2980.5,7.8212]
[1766066641738,2.4159,2981.8,2980.5,7.8212]
[1766066641891,2.4159,2981.7,2980.6,0.579]
[1766066642090,2.4159,2981.7,2980.6,8.4002]
[1766066642323,2.4159,2982.0,2980.6,7.8212]
[1766066642522,7.9148,2982.1,2980.7,8.84887]
[1766066642523,2.4159,2981.9,2980.7,8.84887]
[1766066642727,7.3338,2981.6,2980.4,0.77988]
[1766066642899,0.46438023,2982.0,2980.8,7.8212]
[1766066643106,2.4159,2981.9,2980.9,0.579]
[1766066643303,2.4159,2981.7,2980.4,8.60108]
[1766066643493,2.45782379,2981.6,2980.5,0.579]
[1766066643695,0.46438023,2981.5,2980.6,0.579]
[1766066643902,7.3338,2981.3,2979.4,3.35631441]
[1766066644223,7.3338,2981.3,2979.1,0.001]
[1766066644224,7.3338,2980.9,2979.8,7.8212]
[1766066644425,2.4159,2980.8,2979.9,0.579]
[1766066644810,8.58098865,2981.2,2979.9,1.66457]
[1766066644811,7.3338,2981.2,2979.9,1.66457]
[1766066645031,0.46438023,2981.5,2980.1,7.8212]
[1766066645230,0.579,2981.5,2979.1,0.001]
[1766066645525,0.50630684,2981.4,2979.4,7.8212]
[1766066645704,0.46438023,2980.9,2979.4,7.8212]
[1766066645911,7.3338,2980.8,2979.4,7.8212]
[1766066646112,7.3338,2980.6,2979.5,0.579]
[1766066646437,0.83771802,2980.7,2979.5,0.579]
[1766066646644,0.04193786,2980.6,2979.5,8.4002]
[1766066646808,0.04193786,2980.6,2979.5,7.8212]
[1766066646809,2.4159,2980.5,2979.5,7.8212]
[1766066647306,2.4159,2980.5,2979.3,2.4555]
[1766066647502,3.523,2980.4,2979.3,8.4002]
[1766066647708,2.4159,2980.5,2979.3,8.4002]
[1766066647934,2.4159,2980.5,2979.4,0.84002]
[1766066648714,2.4159,2980.4,2979.3,7.8212]
[1766066648912,2.4159,2980.4,2979.4,0.579]
[1766066649112,5.77116574,2980.4,2979.4,0.579]
[1766066649314,5.77116574,2980.4,2979.1,2.4565]
[1766066649315,8.58098865,2980.2,2979.1,0.001]
[1766066649610,2.4159,2980.1,2979.4,7.8212]
[1766066649814,2.4159,2980.1,2979.5,0.579]
[1766066650116,2.4159,2980.1,2979.1,0.001]
[1766066650318,9.7497,2980.1,2979.2,0.579]
[1766066650523,2.88028023,2980.0,2979.2,0.579]
[1766066650719,2.88028023,2980.0,2979.1,0.001]
[1766066650720,2.4159,2979.9,2979.1,0.001]
[1766066650920,2.4159,2979.9,2978.5,0.001]
[1766066650921,7.3338,2979.3,2978.5,0.001]
[1766066651218,0.46438023,2979.4,2977.9,0.579]
[1766066651219,2.4159,2978.9,2977.9,0.579]
[1766066651423,2.4159,2978.8,2977.9,0.579]
[1766066651625,9.7497,2978.8,2977.9,0.579]
[1766066651827,3.3566058,2979.2,2978.1,7.8212]
[1766066651828,0.46438023,2979.1,2978.1,7.8212]
[1766066652053,2.88028023,2979.0,2977.9,0.579]
[1766066652266,7.3338,2979.7,2978.0,7.8222]
[1766066652475,5.02458976,2980.6,2978.0,7.8222]
[1766066652476,8.58098865,2980.1,2978.4,2.3676]
[1766066652758,8.58098865,2980.1,2978.0,0.001]
[1766066652759,2.4381,2980.0,2978.7,7.9555]
[1766066652964,2.4381,2980.7,2979.2,2.3676]
[1766066653120,10.2989,2980.4,2978.6,7.9555]
[1766066653320,2.4381,2980.1,2979.0,0.579]
[1766066653543,2.90248023,2980.8,2979.2,7.9555]
[1766066653749,11.93575594,2980.9,2979.3,0.579]
[1766066653750,7.8608,2980.0,2979.3,0.579]
[1766066654071,2.4381,2979.9,2979.3,0.579]
[1766066654222,0.579,2980.1,2979.3,0.579]
[1766066654431,2.4381,2980.0,2979.3,0.579]
[1766066655021,2.4381,2979.8,2978.3,2.3676]
[1766066655258,7.8608,2979.7,2978.5,7.9555]
[1766066655541,3.35579095,2980.0,2978.4,1.61131]
[1766066655542,2.4381,2979.4,2978.4,1.03231]
[1766066655723,2.4381,2979.4,2978.4,8.5345]
[1766066655924,0.579,2979.7,2978.6,7.9555]
[1766066656125,3.0171,2979.9,2978.9,7.9555]
[1766066656337,2.4381,2979.9,2978.9,8.5345]
[1766066656931,0.579,2980.0,2978.9,8.5345]
[1766066657137,2.4381,2980.1,2979.1,7.9555]
[1766066657558,2.4381,2979.9,2979.0,0.85345]
[1766066657862,12.97978422,2980.3,2979.0,0.579]
[1766066658025,2.4381,2980.0,2979.1,7.9555]
[1766066658221,2.4381,2979.9,2978.9,0.579]
[1766066658423,2.4381,2979.9,2978.9,8.5345]
[1766066659363,0.04194912,2979.8,2978.9,8.5345]
[1766066659569,2.4381,2979.9,2978.9,9.62471]
[1766066659732,2.4381,2979.9,2978.9,8.5345]
[1766066661227,0.46438023,2980.3,2979.2,2.3676]
[1766066661571,0.46438023,2980.3,2978.7,3.35709397]
[1766066661572,7.8608,2980.1,2978.8,2.3676]
[1766066661751,2.90248023,2980.3,2979.0,8.5345]
[1766066661950,0.579,2980.2,2979.2,7.9555]
[1766066662261,2.4381,2980.1,2979.2,7.9555]
[1766066662674,2.4800449,2980.1,2979.2,7.9555]
[1766066662962,2.4381,2980.1,2979.1,0.85345]
[1766066663170,2.4381,2980.0,2979.0,0.579]
[1766066663530,2.4381,2980.0,2979.0,7.9555]
[1766066663732,2.4381,2979.9,2978.9,0.579]
[1766066664139,2.4381,2979.9,2978.9,8.5345]
[1766066664653,0.579,2980.0,2979.0,7.9555]
[1766066664860,6.25792395,2980.3,2979.0,11.17655]
[1766066664861,0.579,2980.1,2979.0,11.17655]
[1766066665062,2.4800463,2980.0,2979.0,8.80895]
[1766066665262,0.46438023,2980.4,2979.1,0.579]
[1766066665583,2.4381,2979.8,2979.0,1.43145]
[1766066665739,2.4381,2979.8,2979.0,0.578]
[1766066666540,2.4381,2979.8,2978.9,0.001]
[1766066666754,2.4381,2979.8,2978.9,0.579]
[1766066667081,0.578,2979.9,2978.9,8.5345]
[1766066667657,7.8608,2979.8,2978.9,0.001]
[1766066667850,2.4381,2979.7,2978.9,0.001]
[1766066669080,10.2989,2979.7,2978.9,0.001]
[1766066669486,0.5772,2979.8,2978.9,10.3241]
[1766066669687,2.4381,2980.1,2979.2,7.9555]
[1766066669859,7.8608,2980.5,2979.2,1.61031]
[1766066669860,2.4800463,2980.0,2979.2,1.61031]
[1766066670060,2.4800463,2980.0,2979.0,7.9555]
[1766066670398,7.8608,2979.9,2978.9,0.001]
[1766066670606,0.578,2980.2,2978.9,0.001]
[1766066670607,7.8608,2979.7,2978.9,0.001]
[1766066670754,6.87861567,2980.1,2978.9,0.579]
[1766066670755,2.4381,2979.5,2978.9,0.579]
[1766066671551,2.4381,2979.5,2978.9,0.001]
[1766066671763,2.4381,2979.8,2978.9,0.001]
[1766066671982,2.4381,2979.8,2978.9,7.9565]
[1766066672178,2.4381,2979.8,2979.0,7.9555]
[1766066672713,1.67252999,2981.4,2979.1,3.523]
[1766066672868,2.44809999,2983.0,2979.1,3.523]
[1766066672869,0.002,2984.0,2983.0,7.9555]
[1766066673074,2.68298,2985.0,2983.2,7.9555]
[1766066673075,7.8608,2984.4,2983.2,7.9555]
[1766066673396,7.8608,2984.3,2983.0,0.578]
[1766066673552,7.8608,2984.3,2982.6,7.9555]
[1766066673753,7.8608,2984.1,2982.7,0.578]
[1766066674103,2.4381,2984.4,2983.0,8.7005]
[1766066674104,10.2989,2984.4,2983.0,8.7005]
[1766066674267,10.2989,2984.4,2982.8,0.85335]
[1766066674268,2.4381,2984.4,2983.1,0.745]
[1766066674458,2.4381,2984.4,2983.2,8.5335]
[1766066674656,2.4381,2984.4,2983.3,0.745]
[1766066674865,0.24488,2985.0,2983.9,2.3676]
[1766066675081,7.8608,2985.5,2984.1,7.9555]
[1766066675463,7.8608,2985.5,2984.2,2.3676]
[1766066675663,7.8608,2985.9,2984.6,7.9555]
[1766066675890,7.8608,2985.9,2984.7,8.5335]
[1766066676693,7.8608,2985.9,2984.5,2.3676]
[1766066676694,0.46438023,2985.9,2984.5,2.3676]
[1766066676892,2.4381,2985.4,2984.6,0.578]
[1766066677183,12.49964098,2986.0,2984.4,0.578]
[1766066677184,2.4381,2984.9,2984.4,0.578]
[1766066677383,2.4381,2984.9,2984.1,0.578]
[1766066677384,3.46799,2984.9,2984.1,0.578]
[1766066677687,10.2989,2984.6,2983.9,0.578]
[1766066677987,0.61987043,2985.4,2983.6,7.9555]
[1766066677988,7.8608,2985.0,2983.6,7.9555]
[1766066678292,2.4381,2984.6,2983.7,0.578]
[1766066679091,7.8608,2984.7,2983.7,0.578]
[1766066679276,10.2989,2984.7,2983.7,0.578]
[1766066679478,11.32879,2984.7,2983.7,0.578]
[1766066680290,7.8608,2984.6,2983.7,0.578]
[1766066680596,1.02989,2984.7,2983.7,0.578]
[1766066680597,10.2989,2984.5,2983.7,0.578]
[1766066682289,0.002,2984.6,2983.9,7.9555]
[1766066682690,0.002,2984.6,2984.0,0.577]
[1766066682891,0.002,2984.6,2984.1,0.577]
[1766066683094,0.002,2984.6,2983.5,7.2365]
[1766066683299,0.002,2984.6,2981.3,1.68366933]
[1766066683300,7.8152,2984.5,2983.3,2.5085]
[1766066683501,2.4097,2984.3,2983.1,7.2365]
[1766066683794,7.8152,2984.4,2983.2,0.577]
[1766066683795,2.4097,2983.9,2983.2,0.577]
[1766066684013,2.4097,2983.9,2982.7,7.2365]
[1766066684188,2.4097,2983.8,2982.8,0.577]
[1766066684596,2.4097,2983.8,2982.7,7.2365]
[1766066684802,2.4097,2983.8,2982.8,0.577]
[1766066684999,7.85709429,2983.7,2982.9,0.577]
[1766066685225,3.19540943,2983.6,2982.9,0.577]
[1766066685805,7.8152,2984.7,2982.7,3.35263494]
[1766066685993,7.8152,2984.7,2982.4,0.46438023]
[1766066685994,7.8172,2984.6,2983.2,9.745]
[1766066686323,7.8152,2984.4,2983.3,0.577]
[1766066686723,0.04188586,2984.3,2983.3,0.577]
[1766066687118,7.8152,2984.4,2983.3,0.577]
[1766066687426,0.78152,2984.3,2983.3,10.322]
[1766066687594,0.002,2984.6,2983.4,9.745]
[1766066687797,0.002,2984.6,2983.3,0.577]
[1766066687996,0.002,2984.6,2983.5,9.745]
[1766066688301,7.8152,2984.4,2983.6,0.577]
[1766066688498,7.8152,2984.4,2983.7,0.577]
[1766066688895,0.002,2984.6,2983.7,0.577]
[1766066689432,0.78372,2984.6,2983.5,9.745]
[1766066689611,11.00862,2984.6,2983.6,0.577]
[1766066689928,7.8152,2984.5,2983.6,0.577]
[1766066690234,3.19342,2984.6,2983.6,0.577]
[1766066690405,3.19342,2984.6,2983.3,0.001]
[1766066690406,7.8152,2984.5,2983.3,0.001]
[1766066690601,7.8152,2984.4,2983.4,0.577]
[1766066690802,10.2249,2984.3,2983.4,0.577]
[1766066691002,10.2249,2984.3,2983.3,0.001]
[1766066691204,0.577,2984.5,2983.3,0.001]
[1766066691399,0.72800784,2984.4,2983.3,0.001]
[1766066691701,10.2249,2984.2,2983.3,0.001]
[1766066692127,7.8152,2984.2,2983.3,0.001]
[1766066692334,10.2249,2984.2,2983.3,0.001]
[1766066692640,0.002,2984.6,2983.4,7.2365]
[1766066692795,0.002,2984.6,2983.3,0.001]
[1766066692796,0.002,2984.6,2983.6,9.745]
[1766066694098,0.0012,2984.6,2983.6,9.745]
[1766066694299,0.0012,2984.6,2983.6,2.5085]
[1766066694538,0.0012,2984.6,2983.9,9.745]
[1766066694911,0.577,2985.3,2984.0,9.745]
[1766066695124,10.2249,2985.1,2984.0,10.322]
[1766066695320,10.2249,2985.1,2984.1,9.745]
[1766066695520,10.2249,2985.0,2983.8,3.0855]
[1766066695724,10.2249,2985.0,2983.8,0.577]
[1766066695939,0.9696544,2985.3,2983.8,0.577]
[1766066696126,11.34435544,2985.2,2984.0,2.5085]
[1766066696458,1.11945544,2985.2,2984.1,9.745]
[1766066696660,10.2249,2985.1,2984.0,0.577]
[1766066697145,1.11945544,2985.2,2983.8,9.745]
[1766066697350,1.11945544,2985.2,2983.8,10.322]
[1766066697560,1.11945544,2985.2,2983.3,0.001]
[1766066697561,8.94964689,2984.7,2983.3,0.001]
[1766066697743,4.14188165,2984.6,2982.8,9.745]
[1766066698050,3.35120643,2984.0,2982.4,10.322]
[1766066698262,10.2249,2983.7,2982.5,1.0322]
[1766066698424,10.2249,2983.7,2982.5,10.7772]
[1766066698963,0.577,2983.9,2982.4,0.001]
[1766066698964,0.04189569,2983.6,2982.4,0.001]
[1766066699253,0.577,2983.5,2982.4,2.5095]
[1766066699453,0.577,2983.5,2982.4,9.746]
[1766066699454,10.2249,2983.4,2982.4,9.746]
[1766066699822,0.577,2983.5,2982.5,9.745]
[1766066700042,0.577,2983.5,2982.5,7.2365]
[1766066700246,3.92877289,2983.5,2982.4,0.001]
[1766066700552,3.92877289,2983.5,2982.1,0.001]
[1766066700553,10.63231867,2983.5,2982.1,0.001]
[1766066700732,2.4405,2983.3,2982.2,9.8102]
[1766066701219,0.577,2983.5,2982.2,9.8102]
[1766066701420,0.002,2984.7,2982.5,2.3759]
[1766066701620,7.5755,2984.5,2983.1,2.3759]
[1766066701821,7.5755,2984.5,2982.6,0.23759]
[1766066701822,0.002,2984.7,2983.7,2.3759]
[1766066702137,0.002,2984.7,2983.7,9.8102]
[1766066702332,8.95164689,2985.7,2983.7,9.8102]
[1766066702333,12.30096662,2985.7,2984.1,7.4343]
[1766066702534,7.5755,2985.5,2983.8,8.0113]
[1766066702731,0.61886763,2985.6,2983.8,9.05002]
[1766066702732,10.016,2985.3,2983.8,9.05002]
[1766066702939,0.81943676,2985.4,2983.8,11.42592]
[1766066703265,0.81943676,2985.4,2982.4,4.9914978]
[1766066703266,7.5755,2984.3,2982.8,7.4343]
[1766066703428,10.016,2984.1,2982.7,9.8102]
[1766066703629,0.577,2984.2,2982.7,9.8102]
[1766066703828,10.016,2983.9,2982.7,9.8102]
[1766066704054,5.79182615,2983.9,2982.7,9.8102]
[1766066704254,10.016,2983.8,2982.4,9.8102]
[1766066704556,0.46438023,2984.7,2982.3,0.577]
[1766066704761,0.46438023,2984.7,2982.8,9.8102]
[1766066704762,0.61788165,2984.6,2982.8,9.8102]
[1766066704945,10.016,2984.4,2982.7,0.576]
[1766066705162,0.576,2984.6,2983.2,7.4343]
[1766066705368,0.576,2984.5,2983.5,7.4343]
[1766066705875,0.576,2984.5,2982.5,0.46438023]
[1766066705876,0.04188446,2984.4,2982.5,0.46438023]
[1766066706055,10.016,2984.1,2982.8,9.8102]
[1766066706376,0.576,2984.0,2982.9,7.4343]
[1766066706542,0.576,2984.0,2983.3,2.3759]
[1766066706739,0.576,2984.0,2983.3,0.40625548]
[1766066706940,0.002,2984.5,2982.9,0.576]
[1766066706941,0.576,2984.3,2982.9,0.576]
[1766066707268,0.576,2984.3,2983.7,2.3759]
[1766066707444,0.576,2984.3,2982.9,0.576]
[1766066707445,0.576,2984.8,2984.0,2.3759]
[1766066707775,0.576,2985.0,2984.1,9.8102]
[1766066708143,0.002,2985.7,2984.2,0.576]
[1766066708375,0.002,2985.7,2984.4,2.3759]
[1766066708376,3.4425,2985.6,2984.4,2.3759]
[1766066708554,3.4425,2985.6,2984.5,7.4343]
[1766066708878,10.92680219,2985.7,2984.8,9.8102]
[1766066708879,0.002,2985.7,2984.8,9.8102]
[1766066709044,0.002,2985.7,2984.8,0.576]
[1766066709246,2.4405,2986.5,2985.2,2.3759]
[1766066709444,2.4405,2986.5,2985.3,9.8102]
[1766066709662,2.4405,2986.2,2985.0,0.576]
[1766066709975,1.0016,2986.2,2985.2,7.4343]
[1766066710577,13.94046282,2986.5,2985.4,7.4343]
[1766066710765,13.94046282,2986.5,2985.3,2.3759]
[1766066710766,10.016,2986.4,2985.3,2.3759]
[1766066711152,10.016,2986.4,2985.3,9.8102]
[1766066712178,6.69725076,2986.3,2985.3,9.8102]
[1766066712475,3.34862538,2986.3,2985.3,7.4343]
[1766066712676,3.34862538,2986.3,2985.2,0.576]
[1766066712677,12.7910291,2986.3,2985.1,0.576]
[1766066712880,15.2059291,2986.3,2985.0,2.9519]
[1766066713078,1.72890372,2986.3,2985.2,2.4497]
[1766066713288,3.35131004,2986.6,2985.0,0.576]
[1766066713289,0.579,2986.6,2985.1,2.4497]
[1766066713449,0.579,2986.6,2985.5,10.2271]
[1766066713799,0.579,2986.6,2985.5,10.8031]
[1766066714151,0.002,2986.3,2985.5,10.8031]
[1766066714349,0.002,2986.3,2985.5,10.2271]
[1766066714781,0.002,2986.3,2985.0,10.2271]
[1766066714983,10.1304,2986.3,2985.1,0.576]
[1766066715145,10.1304,2986.3,2985.1,3.0257]
[1766066715348,0.002,2986.3,2985.4,7.7774]
[1766066715586,0.002,2986.3,2985.1,0.576]
[1766066715784,0.002,2986.3,2985.6,7.7774]
[1766066716096,10.1304,2986.3,2985.3,7.7774]
[1766066716253,10.1304,2986.3,2985.4,0.576]
[1766066716254,10.1284,2986.2,2985.4,0.576]
[1766066716452,1.01504,2986.3,2985.1,7.7774]
[1766066716453,0.576,2986.1,2985.1,7.7774]
[1766066716655,0.576,2986.1,2984.2,2.4497]
[1766066716656,10.1284,2985.9,2984.2,2.4497]
[1766066716958,0.002,2986.3,2985.4,2.4497]
[1766066717176,0.002,2986.3,2985.6,7.7774]
[1766066717377,0.002,2986.3,2985.6,3.02082691]
[1766066717560,0.582,2986.6,2985.7,0.576]
[1766066717760,0.006,2986.6,2985.9,2.4497]
[1766066717966,0.002,2986.9,2986.1,7.7774]
[1766066718291,0.002,2986.9,2985.9,7.7774]
[1766066718292,2.4169,2986.9,2985.9,7.7774]
[1766066718452,0.002,2986.9,2986.1,7.7774]
[1766066718647,0.002,2986.9,2986.1,10.2271]
[1766066718852,0.002,2986.9,2985.8,0.576]
[1766066718853,0.39397802,2986.9,2985.8,0.576]
[1766066719051,0.39397802,2986.9,2985.8,8.3534]
[1766066719255,0.0012,2986.9,2985.8,0.576]
[1766066719661,0.0012,2986.9,2986.1,7.7774]
[1766066719861,0.002,2987.0,2986.3,10.2271]
[1766066720117,10.1304,2987.0,2985.8,10.2271]
[1766066720315,0.002,2987.0,2986.0,10.2271]
[1766066720787,0.002,2987.0,2985.8,0.576]
[1766066720788,2.4149,2986.9,2985.8,7.7774]
[1766066720981,1.01304,2986.8,2985.9,7.7774]
[1766066721183,1.01304,2986.8,2984.8,3.35027396]
[1766066721184,10.1284,2986.5,2984.6,0.46438023]
[1766066721413,10.1284,2986.5,2985.3,7.7774]
[1766066721719,10.1284,2986.5,2985.4,10.2271]
[1766066721905,10.1284,2986.5,2985.5,7.7774]
[1766066722103,2.9909,2986.7,2985.6,2.4497]
[1766066722307,10.42749,2986.6,2985.4,7.7774]
[1766066722613,2.4149,2986.3,2985.2,2.4497]
[1766066722815,2.4149,2986.3,2985.2,10.2271]
[1766066722816,0.575,2986.2,2985.2,10.2271]
[1766066723013,0.575,2986.2,2985.4,2.4497]
[1766066723215,0.04186062,2986.1,2983.2,7.7774]
[1766066723516,10.1284,2985.4,2984.1,2.4497]
[1766066723718,10.1284,2985.2,2984.1,10.2271]
[1766066723890,10.1284,2985.1,2984.1,7.7774]
[1766066724288,10.1284,2984.8,2983.7,2.4497]
[1766066724515,6.69999408,2985.1,2983.7,7.7774]
[1766066724516,0.575,2984.7,2983.7,7.7774]
[1766066724809,2.4149,2984.6,2983.5,10.2271]
[1766066724989,2.4149,2984.6,2983.6,7.7774]
[1766066725190,2.4149,2984.6,2983.4,0.575]
[1766066725191,0.575,2984.7,2983.4,0.575]
[1766066725384,0.575,2984.7,2983.5,10.2271]
[1766066725583,0.575,2984.7,2983.6,7.7774]
[1766066725813,10.7034,2984.7,2983.6,2.4497]
[1766066726014,0.575,2984.7,2983.8,10.2271]
[1766066726517,0.575,2984.7,2983.9,7.7774]
[1766066727018,2.9899,2985.1,2984.0,10.2271]
[1766066727313,2.9899,2985.1,2984.1,7.7774]
[1766066727512,0.575,2985.1,2984.1,7.7774]
[1766066727683,0.575,2985.1,2984.1,10.2271]
[1766066728021,0.575,2985.1,2984.1,1.08021]
[1766066728205,2.4149,2985.0,2983.9,0.575]
[1766066728406,2.4149,2985.0,2983.7,10.2271]
[1766066728607,6.70019602,2985.0,2983.7,7.7774]
[1766066728810,7.7135,2984.9,2983.3,8.3524]
[1766066728997,2.4149,2984.6,2983.3,10.2271]
[1766066729215,0.575,2984.5,2983.4,8.80011]
[1766066729415,0.575,2984.5,2983.4,11.24981]
[1766066729619,0.575,2984.5,2983.4,3.47241]
[1766066729820,0.575,2984.5,2984.0,0.001]
[1766066730595,10.1284,2984.4,2983.1,10.2271]
[1766066730996,0.575,2984.5,2983.1,10.8021]
[1766066731201,2.4149,2984.3,2983.1,10.8021]
[1766066731391,10.1284,2984.3,2983.1,10.8021]
[1766066731595,10.1284,2984.3,2983.2,1.08031]
[1766066731902,10.1284,2984.3,2983.2,10.2271]
[1766066732221,3.92566455,2984.5,2983.0,0.001]
[1766066732401,2.4149,2983.8,2983.0,0.001]
[1766066732598,0.575,2983.7,2983.0,0.001]
[1766066732793,0.575,2983.7,2983.1,10.2271]
[1766066733295,0.575,2985.0,2983.6,2.4497]
[1766066733618,0.575,2985.0,2983.0,0.001]
[1766066733619,7.7135,2984.6,2983.3,10.2271]
[1766066733919,2.4149,2984.3,2983.0,2.4507]
[1766066734107,7.7135,2984.1,2983.0,0.001]
[1766066734307,2.4149,2983.9,2983.0,0.001]
[1766066734619,2.4149,2983.8,2983.0,0.001]
[1766066734821,0.575,2984.0,2983.1,2.4497]
[1766066735120,0.575,2984.0,2983.3,7.7774]
[1766066735323,8.55179702,2984.8,2983.5,7.7774]
[1766066735526,0.575,2984.7,2983.7,2.4497]
[1766066735726,0.575,2984.7,2983.7,0.30247]
[1766066735900,10.1284,2984.6,2983.4,7.7774]
[1766066736411,10.1284,2984.6,2983.5,0.575]
[1766066736990,10.1284,2984.6,2983.5,7.7774]